fUST/lending_fUST_20260424
["ID","MTS","AMOUNT","RATE_DAILY","PERIOD"]
[421057936,1776960081237,-25.83547136,9.425e-05,2]
[421057940,1776960434137,-535.0,8.219e-05,2]
[421057941,1776960434161,-150.0,8.219e-05,2]
[421057942,1776960434182,-500.0,8.219e-05,2]
[421057943,1776960434204,-788.0,8.219e-05,2]
[421057944,1776960434223,-211.18,8.3e-05,2]
[421057945,1776960434244,-300.0,9.424e-05,2]
[421057946,1776960434265,-519.0,9.424e-05,2]
[421057947,1776960434287,-300.0,9.424e-05,2]
[421057948,1776960434307,-586.23602582,9.425e-05,2]
[421057949,1776960552132,-227.09879567,9.424e-05,2]
[421057950,1776960553145,-324.90120433,9.424e-05,2]
[421057951,1776960553167,-300.0,9.424e-05,2]
[421057952,1776960553187,-35485.13584594,9.425e-05,2]
[421057953,1776960553495,-300.0,9.612e-05,2]
[421057954,1776960553518,-300.0,9.612e-05,2]
[421057955,1776960553540,-300.0,9.612e-05,2]
[421057956,1776960553563,-300.0,9.612e-05,2]
[421057957,1776960553585,-300.0,9.612e-05,2]
[421057958,1776960553608,-300.0,9.612e-05,2]
[421057959,1776960553631,-300.0,9.612e-05,2]
[421057960,1776960553658,-300.0,9.612e-05,2]
[421057961,1776960553681,-300.0,9.612e-05,2]
[421057962,1776960553702,-300.0,9.612e-05,2]
[421057963,1776960553725,-300.0,9.612e-05,2]
[421057964,1776960553748,-300.0,9.612e-05,2]
[421057965,1776960553771,-300.0,9.612e-05,2]
[421057966,1776960553794,-300.0,9.612e-05,2]
[421057967,1776960553816,-300.0,9.612e-05,2]
[421057968,1776960553838,-600.0,9.803e-05,2]
[421057969,1776960553859,-177.0,0.00010219,2]
[421057970,1776960553881,-420.0,0.00010366,2]
[421057971,1776960553904,-720.0,0.00010784,2]
[421057972,1776960553924,-587.0,0.00011403,2]
[421057973,1776960553948,-864.0,0.00011862,2]
[421057974,1776960553967,-1037.35458808,0.00012,2]
[421057975,1776960560092,-606.1006,0.00012,2]
[421057976,1776960560120,-3156.54481192,0.00012,2]
[421057977,1776960560140,-500.0,0.00012,2]
[421057978,1776960560162,-204.0,0.00012219,2]
[421057979,1776960560183,-823.0,0.00012543,2]
[421057980,1776960560204,-500.0,0.0001285,2]
[421057981,1776960560225,-480.85882639,0.0001285,2]
[421057982,1776960560249,-1000.0,0.00013048,2]
[421057983,1776960560268,-1000.0,0.00013699,2]
[421057984,1776960560290,-1152.0,0.00013798,2]
[421057985,1776960560311,-231.0,0.00014219,2]
[421057986,1776960560334,-1000.0,0.00014353,2]
[421057987,1776960560356,-244.0,0.00014353,2]
[421057988,1776960560376,-1029.94505223,0.00015,2]
[421057989,1776960560397,-152.56568698,0.00015,2]
[421057990,1776960560416,-596.46698504,0.00015,2]
[421057991,1776960560437,-1613.0,0.00015177,2]
[421057992,1776960560457,-109.24386255,0.000155,2]
[421058100,1776960638477,-890.75613745,0.000155,2]
[421058101,1776960638486,-644.0,0.000155,2]
[421058102,1776960638495,-3.42226977,0.00016,2]
[421058103,1776960638506,-996.57773023,0.00016,2]
[421058104,1776960638515,-258.0,0.00016219,2]
[421058105,1776960638525,-1000.0,0.000165,2]
[421058106,1776960638534,-261.4892156,0.000169,2]
[421058107,1776960638543,-277.41193959,0.00016969,2]
[421058108,1776960638552,-300.0,0.00016998,2]
[421058109,1776960638562,-500.19119294,0.00016999,2]
[421058110,1776960638571,-398.6044011,0.00017,2]
[421058111,1776960638584,-59151.25762664,0.00017,2]
[421058112,1776960638594,-200.0,0.00017,2]
[421058113,1776960638604,-1000.0,0.00017,2]
[421058114,1776960638614,-209.83635501,0.00017067,2]
[421058115,1776960638624,-500.0,0.00017179,2]
[421058116,1776960638633,-17007.74803831,0.0001718,2]
[421058117,1776960638643,-261.48921556,0.00017275,2]
[421058118,1776960638653,-300.0,0.00017338,2]
[421058119,1776960638663,-300.0,0.00017338,2]
[421058120,1776960638673,-300.0,0.00017338,2]
[421058121,1776960638683,-300.0,0.00017338,2]
[421058122,1776960638693,-300.0,0.00017338,2]
[421058123,1776960638702,-300.0,0.00017338,2]
[421058124,1776960638712,-300.0,0.00017338,2]
[421058125,1776960638722,-300.0,0.00017338,2]
[421058126,1776960638732,-300.0,0.00017338,2]
[421058127,1776960638741,-300.0,0.00017338,2]
[421058128,1776960638752,-300.0,0.00017338,2]
[421058129,1776960638762,-300.0,0.00017338,2]
[421058130,1776960638771,-300.0,0.00017338,2]
[421058131,1776960638781,-300.0,0.00017338,2]
[421058132,1776960638790,-300.0,0.00017338,2]
[421058133,1776960638800,-600.0,0.00017339,2]
[421058134,1776960638810,-500.0,0.00017453,2]
[421058135,1776960638820,-1000.0,0.000175,2]
[421058136,1776960638829,-2162.51715389,0.000176,2]
[421058137,1776960638839,-261.48921556,0.0001765,2]
[421058138,1776960638848,-500.0,0.00017727,2]
[421058139,1776960638859,-500.0,0.00017999,2]
[421058140,1776960638868,-10000.0,0.00018,2]
[421058141,1776960638878,-17739.10500188,0.00018,2]
[421058142,1776960638887,-299.55976927,0.00018,30]
[421058143,1776960638897,-510.01042253,0.00018,2]
[421058144,1776960638906,-1000.0,0.00018,2]
[421058145,1776960638918,-500.0,0.00018001,2]
[421058146,1776960638928,-261.48921556,0.00018025,2]
[421058147,1776960638937,-500.0,0.00018199,2]
[421058148,1776960638947,-164.9411907,0.000182,2]
[421058149,1776960638957,-10011.24610068,0.000182,2]
[421058150,1776960638967,-697.65645538,0.000182,2]
[421058151,1776960638977,-285.0,0.00018219,2]
[421058152,1776960638987,-507.63738405,0.00018275,2]
[421058153,1776960638997,-265.13,0.00018321,2]
[421058154,1776960639007,-164.9411907,0.000184,2]
[421058155,1776960639016,-10011.24610068,0.000184,2]
[421058156,1776960639025,-697.65645538,0.000184,2]
[421058157,1776960639035,-261.48921556,0.000184,2]
[421058158,1776960639044,-1002.38614123,0.00018456,2]
[421058159,1776960639054,-1000.0,0.000185,2]
[421058160,1776960639063,-420.0,0.00018566,2]
[421058161,1776960639073,-500.0,0.0001859,2]
[421058162,1776960639083,-500.0,0.0001859,2]
[421058163,1776960639092,-500.0,0.0001859,3]
[421058164,1776960639102,-500.0,0.00018599,2]
[421058165,1776960639111,-10011.24610068,0.000186,2]
[421058166,1776960639121,-697.65645538,0.000186,2]
[421058167,1776960639130,-500.0,0.00018696,2]
[421058168,1776960639139,-155.0,0.00018697,2]
[421058169,1776960639148,-500.0,0.00018697,2]
[421058170,1776960639157,-500.0,0.00018697,2]
[421058171,1776960639167,-500.0,0.00018697,2]
[421058172,1776960639176,-500.0,0.00018697,2]
[421058173,1776960639185,-500.0,0.00018697,2]
[421058174,1776960639195,-500.0,0.00018697,2]
[421058175,1776960639204,-500.0,0.00018697,2]
[421058176,1776960639214,-500.0,0.00018697,2]
[421058177,1776960639223,-500.0,0.00018697,2]
[421058178,1776960639232,-500.0,0.00018697,2]
[421058179,1776960639241,-500.0,0.00018697,2]
[421058180,1776960639251,-500.0,0.00018697,2]
[421058181,1776960639260,-500.0,0.00018697,2]
[421058182,1776960639269,-500.0,0.00018697,2]
[421058183,1776960639278,-500.0,0.00018697,2]
[421058184,1776960639287,-525.39894773,0.00018697,2]
[421058185,1776960639296,-209.84066689,0.00018698,2]
[421058186,1776960639306,-1208.97,0.00018698,2]
[421058187,1776960639316,-1208.97,0.00018698,2]
[421058188,1776960639325,-1208.97,0.00018698,2]
[421058189,1776960639334,-1208.97,0.00018698,2]
[421058190,1776960639344,-1208.97,0.00018698,2]
[421058191,1776960639353,-1208.97,0.00018698,2]
[421058192,1776960639362,-1208.97,0.00018698,2]
[421058193,1776960639371,-1208.97,0.00018698,2]
[421058194,1776960639381,-1208.97,0.00018698,2]
[421058195,1776960639390,-1208.97,0.00018698,2]
[421058196,1776960639399,-1208.97,0.00018698,2]
[421058197,1776960639408,-1208.97,0.00018698,2]
[421058198,1776960639417,-1208.97,0.00018698,2]
[421058199,1776960639427,-1208.97,0.00018698,2]
[421058200,1776960639436,-1208.97,0.00018698,2]
[421058201,1776960639445,-1208.97,0.00018698,2]
[421058202,1776960639454,-1208.97,0.00018698,2]
[421058203,1776960639463,-1208.97,0.00018698,2]
[421058204,1776960639472,-1208.97,0.00018698,2]
[421058205,1776960639481,-1208.97,0.00018698,2]
[421058206,1776960639491,-1208.97,0.00018698,2]
[421058207,1776960639505,-1208.97,0.00018698,2]
[421058208,1776960639514,-1208.97,0.00018698,2]
[421058209,1776960639524,-1208.97,0.00018698,2]
[421058210,1776960639533,-1208.97,0.00018698,2]
[421058211,1776960639542,-1208.97,0.00018698,2]
[421058212,1776960639552,-1208.97,0.00018698,2]
[421058213,1776960639562,-1208.97,0.00018698,2]
[421058214,1776960639571,-1208.97,0.00018698,2]
[421058215,1776960639581,-1208.97,0.00018698,2]
[421058216,1776960639591,-1208.97,0.00018698,2]
[421058217,1776960639600,-1208.97,0.00018698,2]
[421058218,1776960639610,-2076.1,0.00018698,2]
[421058219,1776960639619,-160.0,0.00018733,2]
[421058220,1776960639628,-10011.24610068,0.000188,2]
[421058221,1776960639639,-697.65645538,0.000188,2]
[421058222,1776960639648,-162.380719,0.00018809,2]
[421058223,1776960639657,-162.380719,0.00018809,2]
[421058224,1776960639667,-445.202766,0.00018809,2]
[421058225,1776960639676,-151.0,0.00018809,2]
[421058226,1776960639686,-537.6845,0.00018809,2]
[421058227,1776960639697,-164.54256826,0.00018809,2]
[421058228,1776960639707,-1957.856,0.00018809,2]
[421058229,1776960639716,-2150.738,0.00018809,2]
[421058230,1776960639726,-155.0,0.00018853,2]
[421058231,1776960639736,-2030.296672,0.00018864,2]
[421058232,1776960639746,-2105.41764886,0.00018919,2]
[421058233,1776960639756,-500.0,0.00018973,2]
[421058234,1776960639765,-500.0,0.00018973,2]
[421058235,1776960639775,-2183.31810187,0.00018974,2]
[421058236,1776960639784,-2547.29605763,0.00019,4]
[421058238,1776960639793,-10011.24610068,0.00019,2]
[421058239,1776960639803,-697.65645538,0.00019,2]
[421058240,1776960639812,-2027.0,0.00019,2]
[421058242,1776960639822,-400.59156557,0.00019,2]
[421058244,1776960639833,-579.49,0.00019,2]
[421058246,1776960639843,-24723.72011875,0.00019,2]
[421058248,1776960639852,-1000.0,0.00019,2]
[421058250,1776960639862,-155.0,0.00019009,2]
[421058252,1776960639872,-2264.10087164,0.00019029,2]
[421058254,1776960639881,-720.0,0.00019073,2]
[421058255,1776960639891,-2347.87260389,0.00019084,2]
[421058256,1776960639900,-367.0,0.00019089,2]
[421058257,1776960639909,-10011.24610068,0.000191,2]
[421058258,1776960639919,-1561.27981773,0.00019139,2]
[421058259,1776960639928,-155.0,0.00019164,2]
[421058260,1776960639938,-1028.96,0.00019178,2]
[421058261,1776960639948,-1286.1374,0.00019178,2]
[421058262,1776960639958,-1286.1374,0.00019178,2]
[421058263,1776960639967,-427.96,0.00019178,2]
[421058264,1776960639976,-300.0,0.00019178,2]
[421058265,1776960639987,-1191.0,0.00019178,2]
[421058266,1776960639996,-760.0,0.0001918,2]
[421058267,1776960640006,-160.0,0.00019208,2]
[421058272,1776960640015,-23413.183318,0.00019208,2]
[421058273,1776960640314,-46666.366636,0.00019208,2]
[421058274,1776960640324,-160.0,0.00019261,2]
[421058275,1776960640333,-15255.311312,0.00019261,2]
[421058276,1776960640343,-30350.622624,0.00019261,2]
[421058277,1776960640353,-450.0,0.00019299,2]
[421058278,1776960640363,-10011.24610068,0.000193,2]
[421058279,1776960640372,-194.060535,0.00019306,7]
[421058280,1776960640382,-155.0,0.0001932,2]
[421058281,1776960640391,-168.3888056,0.00019357,2]
[421058282,1776960640400,-461.67526834,0.00019357,2]
[421058283,1776960640409,-151.0,0.00019357,2]
[421058284,1776960640419,-557.5788265,0.00019357,2]
[421058285,1776960640429,-2230.315306,0.00019357,2]
[421058286,1776960640438,-500.0,0.00019371,2]
[421058287,1776960640448,-500.0,0.00019371,2]
[421058288,1776960640458,-454.4780954,0.00019384,2]
[421058289,1776960640468,-553.283167,0.00019384,2]
[421058290,1776960640477,-455.80029,0.00019385,2]
[421058291,1776960640487,-1191.0,0.00019452,2]
[421058292,1776960640496,-521.0,0.00019453,2]
[421058293,1776960640505,-155.0,0.00019476,2]
[421058294,1776960640514,-10011.24610068,0.000195,2]
[421058295,1776960640524,-1000.0,0.000195,2]
[421058296,1776960640534,-1000.0,0.00019521,2]
[421058297,1776960640543,-1000.0,0.00019521,2]
[421058298,1776960640552,-653.39,0.00019574,2]
[421058299,1776960640561,-1409.0,0.00019574,2]
[421058300,1776960640570,-739.0,0.00019574,2]
[421058301,1776960640580,-184.0,0.00019574,2]
[421058302,1776960640589,-441.0,0.00019574,2]
[421058303,1776960640598,-537.6845,0.00019588,3]
[421058304,1776960640607,-557.5788265,0.00019588,3]
[421058305,1776960640620,-578.20924308,0.00019588,3]
[421058306,1776960640630,-599.60298507,0.00019588,3]
[421058307,1776960640639,-621.78829552,0.00019588,3]
[421058308,1776960640648,-644.79446246,0.00019588,3]
[421058309,1776960640657,-668.65185757,0.00019588,3]
[421058310,1776960640666,-693.3919763,0.00019588,3]
[421058311,1776960640676,-719.04747942,0.00019588,3]
[421058312,1776960640685,-745.65223616,0.00019588,3]
[421058313,1776960640695,-773.2413689,0.00019588,3]
[421058314,1776960640704,-801.85129955,0.00019588,3]
[421058315,1776960640714,-831.51979763,0.00019588,3]
[421058317,1776960640723,-862.28603014,0.00019588,3]
[421058319,1776960640732,-894.19061326,0.00019588,3]
[421058320,1776960640742,-927.27566595,0.00019588,3]
[421058321,1776960640753,-961.58486559,0.00019588,3]
[421058322,1776960640762,-997.16350561,0.00019588,3]
[421058323,1776960640771,-300.0,0.00019589,3]
[421058324,1776960640780,-172.28,0.00019589,2]
[421058325,1776960640790,-3215.0098336,0.00019598,2]
[421058326,1776960640799,-1799.8563079,0.00019598,2]
[421058327,1776960640809,-834455.53682268,0.000196,2]
[421058328,1776960640823,-8051.33279924,0.000196,2]
[421058329,1776960640835,-387.29937197,0.000196,2]
[421058408,1776960646813,-5173.46939032,0.000196,2]
[421058409,1776960646824,-1257.42635663,0.000196,2]
[421058411,1776960647081,-5142.00043291,0.000196,2]
[421058413,1776960647093,-494.293216,0.000196,2]
[421058414,1776961548631,-253.33393271,0.000129,2]
[421058415,1776961653088,-1000.0,0.000125,2]
[421058416,1776961653108,-602.76889858,0.000125,2]
[421058417,1776961772095,-746.5995243,0.000123,2]
[421058418,1776961772114,-430.01553355,0.000124,2]
[421058419,1776961772136,-300.0,0.00012499,2]
[421058420,1776961772157,-397.23110142,0.000125,2]
[421058421,1776961772177,-1000.0,0.000125,2]
[421058422,1776961772198,-1000.0,0.000125,2]
[421058423,1776961772218,-1000.0,0.000125,2]
[421058424,1776961772239,-1000.0,0.000125,2]
[421058425,1776961772259,-618.80241858,0.000125,2]
[421058426,1776961772289,-381.19758142,0.000125,2]
[421058427,1776961772311,-1000.0,0.000126,2]
[421058428,1776961772331,-1000.0,0.000126,2]
[421058429,1776961772351,-1000.0,0.000126,2]
[421058430,1776961772374,-5000.0,0.00012672,2]
[421058431,1776961772397,-150.0,0.0001285,2]
[421058432,1776961772417,-300.0,0.00012968,2]
[421058433,1776961772438,-1200.0,0.00012968,2]
[421058434,1776961772458,-1000.0,0.00013699,2]
[421058435,1776961772480,-1500.0,0.00013699,2]
[421058436,1776961772499,-2550.403157,0.00013699,2]
[421058437,1776961772523,-420.0,0.00013714,2]
[421058438,1776961772546,-300.0,0.00013832,2]
[421058439,1776961772569,-300.0,0.00013832,2]
[421058440,1776961772593,-300.0,0.00013832,2]
[421058441,1776961772615,-300.0,0.00013832,2]
[421058442,1776961772640,-300.0,0.00013832,2]
[421058443,1776961772663,-300.0,0.00013832,2]
[421058444,1776961772686,-300.0,0.00013832,2]
[421058445,1776961772709,-300.0,0.00013832,2]
[421058446,1776961772732,-300.0,0.00013832,2]
[421058447,1776961773008,-300.0,0.00013832,2]
[421058448,1776961773033,-300.0,0.00013832,2]
[421058449,1776961773056,-300.0,0.00013832,2]
[421058450,1776961773081,-300.0,0.00013832,2]
[421058451,1776961773104,-300.0,0.00013832,2]
[421058452,1776961773128,-300.0,0.00013832,2]
[421058453,1776961773151,-600.0,0.00014108,2]
[421058454,1776961773172,-480.0,0.00014265,2]
[421058455,1776961773195,-177.0,0.0001485,2]
[421058456,1776961773216,-587.0,0.00015048,2]
[421058457,1776961797364,150.0,0.00012,2]
[421058591,1776961838860,-161.41786289,0.00015363,2]
[421058592,1776961838870,-644.0,0.00015518,2]
[421058594,1776961838881,-204.0,0.0001685,2]
[421058595,1776961838890,-219.19136643,0.00017103,2]
[421058596,1776961838900,-500.0,0.00018299,2]
[421058597,1776961838909,-300.0,0.00018299,2]
[421058598,1776961838919,-4004.49844027,0.000183,2]
[421058599,1776961838928,-1994.56232853,0.000183,2]
[421058600,1776961838938,-160.0,0.00018337,2]
[421058601,1776961838947,-4004.49844027,0.000184,2]
[421058602,1776961838956,-1994.56232853,0.000184,2]
[421058603,1776961838966,-162.380719,0.00018416,2]
[421058604,1776961838975,-151.0,0.00018416,2]
[421058605,1776961838985,-168.74433481,0.00018416,2]
[421058606,1776961838995,-537.6845,0.00018416,2]
[421058607,1776961839004,-537.6845,0.00018416,2]
[421058608,1776961839013,-445.202766,0.00018416,2]
[421058609,1776961839023,-2150.738,0.00018416,2]
[421058610,1776961839032,-557.5788265,0.00018471,2]
[421058611,1776961839042,-500.0,0.00018498,2]
[421058612,1776961839051,-188.93723472,0.00018498,2]
[421058613,1776961839060,-1361.79783882,0.00018498,2]
[421058614,1776961839070,-1361.79783882,0.00018498,2]
[421058615,1776961839079,-329.01837827,0.00018498,2]
[421058616,1776961839089,-1361.79783882,0.00018498,2]
[421058617,1776961839098,-1361.79783882,0.00018498,2]
[421058618,1776961839107,-1361.79783882,0.00018498,2]
[421058619,1776961839116,-1361.79783882,0.00018498,2]
[421058620,1776961839125,-1361.79783882,0.00018498,2]
[421058621,1776961839134,-1361.79783882,0.00018498,2]
[421058622,1776961839143,-1361.79783882,0.00018498,2]
[421058623,1776961839153,-1361.79783882,0.00018498,2]
[421058624,1776961839163,-1361.79783882,0.00018498,2]
[421058625,1776961839172,-1361.79783882,0.00018498,2]
[421058626,1776961839182,-1361.79783882,0.00018498,2]
[421058627,1776961839191,-1361.79783882,0.00018498,2]
[421058628,1776961839200,-1361.79783882,0.00018498,2]
[421058629,1776961839209,-1361.79783882,0.00018498,2]
[421058630,1776961839219,-1361.79783882,0.00018498,2]
[421058631,1776961839228,-500.0,0.00018498,2]
[421058632,1776961839237,-500.0,0.00018498,2]
[421058633,1776961839246,-279.08708643,0.00018498,2]
[421058634,1776961839255,-500.0,0.00018498,2]
[421058635,1776961839264,-500.0,0.00018498,2]
[421058636,1776961839274,-500.0,0.00018498,2]
[421058637,1776961839283,-500.0,0.00018498,2]
[421058638,1776961839292,-441.46852148,0.00018498,2]
[421058639,1776961839301,-500.0,0.00018498,2]
[421058640,1776961839312,-608.86732197,0.00018498,2]
[421058641,1776961839321,-500.0,0.00018498,2]
[421058642,1776961839330,-365.38796427,0.00018498,2]
[421058643,1776961839339,-500.0,0.00018498,2]
[421058644,1776961839349,-500.0,0.00018498,2]
[421058645,1776961839357,-500.0,0.00018498,2]
[421058646,1776961839367,-500.0,0.00018498,2]
[421058647,1776961839376,-500.0,0.00018498,2]
[421058648,1776961839385,-500.0,0.00018498,2]
[421058649,1776961839395,-500.0,0.00018498,2]
[421058650,1776961839404,-500.0,0.00018498,2]
[421058651,1776961839413,-500.0,0.00018498,2]
[421058652,1776961839422,-500.0,0.00018498,2]
[421058653,1776961839432,-500.0,0.00018498,2]
[421058654,1776961839441,-500.0,0.00018498,2]
[421058655,1776961839450,-500.0,0.00018498,2]
[421058656,1776961839460,-500.0,0.00018498,2]
[421058657,1776961839469,-500.0,0.00018498,2]
[421058658,1776961839478,-500.0,0.00018498,2]
[421058659,1776961839487,-500.0,0.00018498,2]
[421058660,1776961839497,-500.0,0.00018498,2]
[421058661,1776961839506,-500.0,0.00018498,2]
[421058662,1776961839515,-500.0,0.00018498,2]
[421058663,1776961839524,-500.0,0.00018498,2]
[421058664,1776961839534,-588.61750959,0.00018498,2]
[421058665,1776961839544,-500.0,0.00018498,2]
[421058666,1776961839554,-1361.79783882,0.00018498,2]
[421058667,1776961839563,-500.0,0.00018498,2]
[421058668,1776961839573,-500.0,0.00018498,2]
[421058669,1776961839582,-1361.79783882,0.00018498,2]
[421058670,1776961839593,-500.0,0.00018498,2]
[421058671,1776961839602,-500.0,0.00018498,2]
[421058672,1776961839613,-1361.79783882,0.00018498,2]
[421058673,1776961839622,-500.0,0.00018498,2]
[421058674,1776961839632,-500.0,0.00018498,2]
[421058675,1776961839641,-500.0,0.00018498,2]
[421058676,1776961839651,-500.0,0.00018498,2]
[421058677,1776961839660,-500.0,0.00018498,2]
[421058678,1776961839669,-500.0,0.00018498,2]
[421058679,1776961839679,-500.0,0.00018498,2]
[421058680,1776961839688,-500.0,0.00018498,2]
[421058681,1776961839698,-500.0,0.00018498,2]
[421058682,1776961839707,-500.0,0.00018498,2]
[421058683,1776961839716,-500.0,0.00018498,2]
[421058684,1776961839726,-500.0,0.00018498,2]
[421058685,1776961839735,-500.0,0.00018498,2]
[421058686,1776961839745,-500.0,0.00018498,2]
[421058687,1776961839755,-500.0,0.00018498,2]
[421058688,1776961839764,-500.0,0.00018498,2]
[421058689,1776961839773,-500.0,0.00018498,2]
[421058690,1776961839783,-500.0,0.00018498,2]
[421058691,1776961839792,-500.0,0.00018498,2]
[421058692,1776961839802,-500.0,0.00018498,2]
[421058693,1776961839812,-500.0,0.00018498,2]
[421058694,1776961839821,-500.0,0.00018498,2]
[421058695,1776961839831,-500.0,0.00018498,2]
[421058696,1776961839840,-500.0,0.00018498,2]
[421058697,1776961839850,-500.0,0.00018498,2]
[421058698,1776961839860,-419.13913916,0.00018498,2]
[421058699,1776961839872,-500.0,0.00018498,2]
[421058701,1776961839882,-500.0,0.00018498,2]
[421058703,1776961839892,-500.0,0.00018498,2]
[421058705,1776961839902,-500.0,0.00018498,2]
[421058707,1776961839912,-500.0,0.00018498,2]
[421058709,1776961839922,-500.0,0.00018498,2]
[421058710,1776961839931,-500.0,0.00018498,2]
[421058712,1776961839941,-500.0,0.00018498,2]
[421058714,1776961839951,-500.0,0.00018498,2]
[421058716,1776961839960,-1480.9551497,0.00018498,2]
[421058718,1776961839969,-1480.9551497,0.00018498,2]
[421058721,1776961839979,-1480.9551497,0.00018498,2]
[421058723,1776961839987,-1480.9551497,0.00018498,2]
[421058725,1776961839998,-1480.9551497,0.00018498,2]
[421058727,1776961840007,-1480.9551497,0.00018498,2]
[421058729,1776961840017,-1480.9551497,0.00018498,2]
[421058731,1776961840026,-1480.9551497,0.00018498,2]
[421058733,1776961840036,-107767.02179056,0.00018499,2]
[421058787,1776961840541,-857.35484103,0.00018499,2]
[421058790,1776961840565,-63167.54208981,0.00018499,2]
[421058793,1776961840580,-1477.8415112,0.00018499,2]
[421058795,1776961840596,-1805.26752108,0.00018499,2]
[421058803,1776961841005,-703.674,0.00018499,2]
[421058805,1776961841017,-6085.88211101,0.00018499,2]
[421058810,1776961841071,-671.77936835,0.00018499,2]
[421058811,1776961841082,-6423.94677741,0.00018499,2]
[421058821,1776961843772,-1563.83098617,0.00018499,2]
[421058822,1776961843830,-3805.93678142,0.00018499,2]
[421058825,1776961844013,-28.14821474,0.00018499,2]
[421058841,1776961847291,-1499.01359077,0.00018499,2]
[421058842,1776961847302,-132982.58441116,0.00018499,2]
[421058845,1776961847685,-178.08773087,0.00018499,2]
[421058897,1776962809130,-157.68718564,0.00013561,2]
[421058898,1776962809151,-13.33913717,0.00013561,2]
[421058899,1776962825122,-516.15017002,0.00013698,2]
[421058900,1776962825143,-150.0,0.00013699,2]
[421058901,1776962825174,-1000.0,0.00013699,2]
[421058902,1776962825205,-177.0,0.00015699,2]
[421058903,1776962825230,-204.0,0.00017699,2]
[421058904,1776962825253,-972.96105749,0.00018125,2]
[421058906,1776962844113,-161.8575581,0.00018125,2]
[421058913,1776963031849,-563.10880396,0.00018025,2]
[421058914,1776963031859,-688.0,0.00018123,2]
[421058915,1776963031869,-300.0,0.00018123,2]
[421058916,1776963031878,-300.0,0.00018123,2]
[421058917,1776963031887,-1200.0,0.00018123,2]
[421058918,1776963031897,-164.36221964,0.00018124,2]
[421058919,1776963031907,-805.19874931,0.00018124,2]
[421058920,1776963031916,-805.19874931,0.00018124,2]
[421058921,1776963031925,-805.19874931,0.00018124,2]
[421058922,1776963031935,-805.19874931,0.00018124,2]
[421058923,1776963031944,-805.19874931,0.00018124,2]
[421058924,1776963031954,-805.19874931,0.00018124,2]
[421058925,1776963031963,-805.19874931,0.00018124,2]
[421058926,1776963031972,-791.77731475,0.00018124,2]
[421058927,1776963031988,-13.42143456,0.00018124,2]
[421058928,1776963031997,-805.19874931,0.00018124,2]
[421058929,1776963032006,-468.28364769,0.00018124,2]
[421058930,1776963032100,-132.5030322,0.00018124,2]
[421059062,1776963038635,-204.41206942,0.00018124,2]
[421059063,1776963038645,-805.19874931,0.00018124,2]
[421059064,1776963038654,-805.19874931,0.00018124,2]
[421059065,1776963038664,-500.0,0.00018124,2]
[421059066,1776963038673,-805.19874931,0.00018124,2]
[421059067,1776963038682,-500.0,0.00018124,2]
[421059068,1776963038693,-437.94094683,0.00018124,2]
[421059069,1776963038702,-500.0,0.00018124,2]
[421059070,1776963038711,-805.19874931,0.00018124,2]
[421059071,1776963038721,-500.0,0.00018124,2]
[421059072,1776963038731,-558.86175096,0.00018124,2]
[421059073,1776963038742,-500.0,0.00018124,2]
[421059074,1776963038751,-805.19874931,0.00018124,2]
[421059075,1776963038761,-491.91391391,0.00018124,2]
[421059076,1776963038770,-805.19874931,0.00018124,2]
[421059077,1776963038780,-805.19874931,0.00018124,2]